[Event "Romanian Rapid Open 2022"]
[Site "Sebes"]
[Date "2022.12.02"]
[Round "1.36"]
[White "Zubcu, Vlad-George"]
[Black "Schmit, Andrei-Marian"]
[Result "1-0"]
[ECO "C14"]
[WhiteElo "2135"]
[BlackElo "1323"]
[Annotator "TA"]
[PlyCount "67"]
[EventDate "2022.12.02"]
[EventType "rapid"]
[EventCountry "ROU"]
[SourceTitle "playchess.com"]
[Source "ChessBase"]
[SourceQuality "1"]
[TimeControl "600+5"]

{[%evp 13,67,14,85,11,26,11,20,8,14,11,32,7,8,14,22,-20,31,18,25,6,18,1,22,7,52,50,177,162,150,60,81,12,97,69,151,135,204,217,425,219,188,113,248,229,681,724,679,682,2102,1612,29988,29989,29991,29992,29996,29997]} 1. d4 {[%emt 0:00:05]} d5 {[%emt 0:00:05]} 2. Nc3 {[%emt 0:00:05]} Nf6 {[%emt 0:00:05]} 3. Bg5 {[%emt 0:00:05]} e6 {[%emt 0:00:05]} 4. e4 {[%emt 0:00:05]} Be7 {[%emt 0:00:05]} 5. e5 {[%emt 0:00:24]} Nfd7 {[%emt 0:00:06]} 6. Bxe7 {[%emt 0:00:00]} Qxe7 {[%emt 0:00:02]} 7. f4 {[%emt 0:00:02]} c5 {[%emt 0:00:03]} (7... a6 $11) 8. Nf3 {[%emt 0:00:01] C14: French: Classical System: 4 Bg5 Be7 main line.} (8. Nb5 $1 $16 {[%cal Rb5c7] aiming for Nc7+.} Kd8 9. c4) 8... Nc6 {[%emt 0:00:02]} 9. dxc5 {[%emt 0:00:07]} Nxc5 {[%emt 0:00:05]} 10. Be2 {[%emt 0:00:20] The position is equal.} O-O {[%emt 0:00:04]} 11. O-O {[%emt 0:00:02] [#]} h6 $146 {[%emt 0:00:16]} ({Predecessor:} 11... f6 12. exf6 Qxf6 13. g3 Bd7 14. Nxd5 Qxb2 15. Ne3 Rad8 16. Bc4 Be8 17. Qe2 Kh8 {0-1 (35) Pesztericz,L (2065)-Kantorik,M (2265) Banska Stiavnica 2015}) 12. a3 {[%emt 0:00:02]} a6 {[%emt 0:00:35]} 13. b4 {[%emt 0:00:20]} Nd7 {[%emt 0:00:04]} 14. Bd3 {[%emt 0:00:04]} b5 {[%emt 0:00:27]} (14... a5 $11) 15. Ne2 {[%emt 0:00:03]} Nb6 {[%emt 0:00:15]} 16. c3 {[%emt 0:00:32]} Nc4 {[%emt 0:00:06]} 17. Qc1 {[%emt 0:00:12] Against Ne3} Qa7+ {[%emt 0:00:32]} 18. Kh1 {[%emt 0:00:03]} Bb7 {[%emt 0:00:33]} 19. Ned4 {[%emt 0:00:08]} Ne7 {[%emt 0:00:42]} (19... Nxd4 $14 20. Nxd4 Qb6) 20. Qe1 {[%emt 0:00:14]} Qb8 {[%emt 0:00:30]} 21. a4 {[%emt 0:00:26]} (21. g4 $16) 21... bxa4 {[%emt 0:01:06] [#]} 22. Qe2 {[%emt 0:00:02]} (22. Rxa4 Nb2 $15) (22. g4 $1 $16) 22... Nb6 {[%emt 0:00:48]} (22... Qe8 $11 {keeps the balance.}) 23. Bc2 {[%emt 0:00:30] White is much more active. The black rooks are badly placed.} Nc4 {[%emt 0:00:36]} ({Better is} 23... Qc7 $14) 24. Rxa4 {[%emt 0:00:14]} ({Resist} 24. Bxa4 $6 Qc7 $14) 24... Nb6 {[%emt 0:00:43]} (24... Qc7 $16) 25. Raa1 $18 {[%emt 0:00:06]} Qc8 $2 {[%emt 0:00:41]} (25... Qc7 26. Rfc1 (26. Qd3 g6 $14) 26... Nc4) 26. Rac1 $40 {[%emt 0:00:08][%mdl 128] Black is in trouble.} (26. Qd3 $142 {[%csl Gc2][%cal Rd3h7]} g6 27. f5 exf5 28. Nh4) 26... Nc4 {[%emt 0:00:10] [#]} 27. h4 {[%emt 0:00:08]} (27. Qd3 $6 g6 $14) (27. g4 $1 $18) 27... Rd8 {[%emt 0:00:40] Inhibits f5.} (27... a5 $16) 28. h5 {[%emt 0:00:13] Strongly threatening Qd3.} ({Don't play} 28. Qd3 $6 Ng6 29. h5 Nb2) 28... Nc6 $2 {[%emt 0:00:18]} (28... Na3 29. g4 Nxc2) 29. Qd3 {[%emt 0:00:08] Threatens to win with Qh7+.} Kf8 {[%emt 0:00:49]} 30. Qh7 {[%emt 0:00:34]} Ne7 {[%emt 0:00:08]} 31. f5 {[%emt 0:00:15]} Ne3 {[%emt 0:00:22]} 32. fxe6 {[%emt 0:00:23] White mates.} Nxf1 {[%emt 0:00:16]} 33. Rxf1 {[%emt 0:00:04]} fxe6 {[%emt 0:00:17]} 34. Qh8+ {[%emt 0:00:06] Weighted Error Value: White=0.35/Black=0.74} 1-0

[Event "Romanian Rapid Open 2022"]
[Site "Sebes"]
[Date "2022.12.02"]
[Round "1.37"]
[White "Bichis, Tudor"]
[Black "Dragomirescu, Calin"]
[Result "0-1"]
[ECO "A48"]
[WhiteElo "1145"]
[BlackElo "1971"]
[Annotator "TA"]
[PlyCount "120"]
[EventDate "2022.12.02"]
[EventType "rapid"]
[EventCountry "ROU"]
[SourceTitle "playchess.com"]
[Source "ChessBase"]
[SourceQuality "1"]
[TimeControl "600+5"]

{[%evp 14,120,0,0,12,-2,27,-4,21,-16,-16,-175,-2,-118,7,-13,0,0,0,0,43,0,0,0,0,-11,0,2,10,-50,-49,-51,-50,-61,-59,-108,-19,-20,-19,-8,-13,-74,-45,-92,-74,-75,-61,-132,-138,-199,-173,-272,-283,-276,-281,-268,-217,-318,-279,-285,-279,-336,-314,-311,-300,-372,-290,-283,-270,-385,-382,-371,-369,-384,-366,-351,-341,-585,-747,-725,-716,-715,-706,-825,-788,-780,-725,-1865,-1607,-5065,-2067,-5560,-4910,-4610,-3839,-29981,-29982,-29982,-29983,-29983,-29984,-29985,-29986,-29986,-29987,-29987,-29988,-29988,-29989]} 1. d4 {[%emt 0:00:02]} Nf6 {[%emt 0:00:03]} 2. Nf3 {[%emt 0:00:04]} g6 {[%emt 0:00:02]} 3. Nbd2 {[%emt 0:00:08]} Bg7 {[%emt 0:00:03]} 4. e3 {[%emt 0:00:09]} O-O {[%emt 0:00:04]} 5. Bd3 {[%emt 0:00:15]} d6 {[%emt 0:00:02]} 6. O-O {[%emt 0:00:12]} Nbd7 {[%emt 0:00:03]} 7. b3 {[%emt 0:00:11]} c5 {[%emt 0:00:07]} 8. Bb2 {[%emt 0:00:16]} a6 {[%emt 0:00:04] A48: 1 d4 Nf6 2 Nf3 g6: Torre, London and Colle Systems.} 9. c4 {[%emt 0:00:10]} b6 {[%emt 0:00:10]} 10. Rc1 {[%emt 0:00:18]} Bb7 {[%emt 0:00:03] [#] The position is equal.} 11. Qe2 $146 {[%emt 0:00:13]} ({Predecessor:} 11. d5 e5 12. e4 Nh5 13. Re1 Nf4 14. Bb1 Bc8 15. Nf1 Nf6 16. Ne3 h5 17. h4 {½-½ (59) Seeger,E (1677)-Kimmich,D (1963) Bremen 2014}) 11... cxd4 {[%emt 0:00:08]} 12. Nxd4 $2 {[%emt 0:00:37]} (12. exd4 $11 b5 13. Rc2 (13. cxb5 axb5 14. a3 b4 $11)) 12... Rc8 $2 {[%emt 0:00:14]} (12... e5 $19 13. Nf5 gxf5 14. Bxf5 Qe7) 13. Rfd1 {[%emt 0:00:30]} (13. b4 $11) 13... Qc7 {[%emt 0:00:06]} (13... e5 $17 14. Nf5 gxf5 15. Bxf5 Re8) 14. Bb1 {[%emt 0:00:27]} Qb8 {[%emt 0:00:04]} 15. N4f3 {[%emt 0:00:27]} Qa8 {[%emt 0:00:12]} 16. h3 {[%emt 0:00:30]} h5 {[%emt 0:00:15]} 17. Ne1 {[%emt 0:00:37]} Bc6 {[%emt 0:00:32]} 18. f3 {[%emt 0:00:15]} b5 {[%emt 0:00:16]} 19. e4 {[%emt 0:00:21]} bxc4 {[%emt 0:00:23]} 20. Nxc4 {[%emt 0:00:06]} Bb5 {[%emt 0:00:03]} 21. a4 {[%emt 0:00:10]} (21. Bd3 $11) 21... Bxc4 $1 $15 {[%emt 0:00:15]} 22. Rxc4 {[%emt 0:00:02]} Rxc4 {[%emt 0:00:05]} 23. Qxc4 {[%emt 0:00:05]} Rc8 {[%emt 0:00:16] Inhibits b4.} 24. Qd3 {[%emt 0:00:10]} (24. Qe2 $15) 24... Ne8 {[%emt 0:00:15]} ({Black should try} 24... Nc5 $17 25. Qe3 Qb7) 25. Bxg7 $11 {[%emt 0:00:23]} Nxg7 {[%emt 0:00:02]} 26. Qe3 {[%emt 0:00:29] Against Qa7} a5 {[%emt 0:00:15]} 27. Bd3 {[%emt 0:00:16]} (27. f4 $11 {remains equal.}) 27... Rc3 $17 {[%emt 0:00:36]} 28. Rb1 {[%emt 0:00:40]} (28. Qd2 $15 Rxb3 29. Bc4) 28... Qc8 {[%emt 0:00:27] Black is more active.} 29. Qd2 {[%emt 0:00:23]} Qc5+ {[%emt 0:00:22]} 30. Kh1 {[%emt 0:00:11] [#] Black converts the advantage convincingly.} (30. Qf2 $15) 30... Qd4 $1 {[%emt 0:00:42]} 31. Rb2 {[%emt 0:01:03]} (31. Qb2 $17) 31... Ne5 {[%emt 0:00:32][%cal Re5d3]} 32. Bc4 {[%emt 0:00:59]} (32. Bb5 $142 Qxd2 33. Rxd2) 32... Qxd2 $19 {[%emt 0:00:06]} 33. Rxd2 {[%emt 0:00:03]} Nxc4 {[%emt 0:00:13]} 34. bxc4 {[%emt 0:00:08]} Rxc4 {[%emt 0:00:03][%mdl 4096] Endgame KRN-KRN} 35. Ra2 {[%emt 0:00:29]} (35. Rc2 $142 Rxa4 36. Rc8+ Kh7 37. Kg1) 35... Rc1 {[%emt 0:00:11]} 36. Re2 {[%emt 0:00:03]} Ra1 {[%emt 0:00:02][%cal Og7e6]} 37. Kh2 {[%emt 0:00:01]} Rxa4 {[%emt 0:00:04]} 38. Rb2 {[%emt 0:00:03]} Ne6 {[%emt 0:00:38]} 39. Nd3 {[%emt 0:00:09]} Nc5 {[%emt 0:00:16]} 40. Nxc5 {[%emt 0:00:09]} dxc5 {[%emt 0:00:02] KR-KR} 41. Rc2 {[%emt 0:00:02]} (41. Rb5 $142) 41... c4 {[%emt 0:00:02]} 42. Kg3 {[%emt 0:00:02]} Kg7 {[%emt 0:00:20]} 43. e5 {[%emt 0:00:15]} Rb4 {[%emt 0:00:22] White must now prevent ...a4.} 44. Kf4 {[%emt 0:00:04]} a4 {[%emt 0:00:16] [#] And now ...a3 would win.} 45. Ke4 $2 {[%emt 0:00:08]} (45. Rc3 {was necessary.}) 45... a3 {[%emt 0:00:08] Hoping for ...Rb2.} 46. Ra2 {[%emt 0:00:06]} Ra4 {[%emt 0:00:12]} 47. Kd4 {[%emt 0:00:07]} g5 {[%emt 0:00:02]} 48. Kc3 {[%emt 0:00:11]} Kg6 {[%emt 0:00:06]} 49. g4 {[%emt 0:00:16]} hxg4 {[%emt 0:00:21]} 50. hxg4 {[%emt 0:00:03]} f6 {[%emt 0:00:01]} 51. e6 {[%emt 0:00:04]} f5 {[%emt 0:00:01] Threatens to win with ...fxg4.} 52. Kd4 {[%emt 0:00:12]} fxg4 {[%emt 0:00:03]} 53. fxg4 {[%emt 0:00:02]} Kf6 {[%emt 0:00:01]} 54. Kc5 {[%emt 0:00:03]} c3 {[%emt 0:00:23] Black mates.} 55. Kb5 {[%emt 0:00:06]} Ra8 {[%emt 0:00:17]} 56. Kb4 {[%emt 0:00:12]} c2 {[%emt 0:00:09]} 57. Ra1 {[%emt 0:00:12]} a2 {[%emt 0:00:07]} 58. Kb3 {[%emt 0:00:03]} c1=Q {[%emt 0:00:05]} 59. Rxc1 {[%emt 0:00:02]} a1=Q {[%emt 0:00:03]} 60. Rxa1 {[%emt 0:00:04]} Rxa1 {Weighted Error Value: White=0.69/Black=0.23 (precise)} 0-1

[Event "Romanian Rapid Open 2022"]
[Site "Sebes"]
[Date "2022.12.02"]
[Round "1.38"]
[White "Tampea, Radu"]
[Black "Raditoiu, Laurentiu"]
[Result "1-0"]
[ECO "D00"]
[WhiteElo "2110"]
[BlackElo "1316"]
[Annotator "NA RC COMBH"]
[PlyCount "63"]
[EventDate "2022.12.02"]
[EventType "rapid"]
[EventCountry "ROU"]
[SourceTitle "playchess.com"]
[Source "ChessBase"]
[SourceQuality "1"]
[TimeControl "600+5"]

1. d4 {[%emt 0:00:02]} d5 {[%emt 0:00:02]} 2. Bf4 {[%emt 0:00:01]} c5 {[%emt 0:00:04]} 3. e3 {[%emt 0:00:01]} Nc6 {[%emt 0:00:02]} 4. c3 {[%emt 0:00:02]} Bf5 {[%emt 0:00:03]} 5. Qb3 {[%emt 0:10:24]} cxd4 {[%emt 0:00:52]} 6. Qxb7 {[%emt 0:00:00]} Bd7 {[%emt 0:00:03]} 7. exd4 {[%emt 0:00:00]} e6 {[%emt 0:00:06]} 8. Bb5 {[%emt 0:00:00]} Qc8 {[%emt 0:00:17]} 9. Qxc8+ {[%emt 0:00:00]} Rxc8 {[%emt 0:00:02]} 10. Ba6 {[%emt 0:00:00]} Nxd4 {[%emt 0:00:21]} 11. cxd4 {[%emt 0:00:00]} Bb4+ {[%emt 0:00:02]} 12. Bd2 {[%emt 0:00:00]} Rc1+ {[%emt 0:00:43]} 13. Ke2 {[%emt 0:00:00]} Rc2 {[%emt 0:00:17]} 14. a3 {[%emt 0:00:00]} Bxd2 {[%emt 0:00:04]} 15. Nxd2 {[%emt 0:00:00]} Rxb2 {[%emt 0:00:08]} 16. Ngf3 {[%emt 0:00:00]} Ne7 {[%emt 0:00:04]} 17. Rhb1 {[%emt 0:00:00]} Rxb1 {[%emt 0:00:07]} 18. Rxb1 {[%emt 0:00:00]} O-O {[%emt 0:00:06]} 19. Rb7 {[%emt 0:00:00]} Rd8 {[%emt 0:00:11]} 20. Ne5 {[%emt 0:00:00]} Nc6 {[%emt 0:00:55]} 21. Rxd7 {[%emt 0:00:00]} Rxd7 {[%emt 0:00:31]} 22. Nxd7 {[%emt 0:00:00]} Nxd4+ {[%emt 0:00:01]} 23. Kd3 {[%emt 0:00:00]} Nf5 {[%emt 0:00:07]} 24. Ne5 {[%emt 0:00:00]} f6 {[%emt 0:00:09]} 25. Nc6 {[%emt 0:00:00]} e5 {[%emt 0:00:07]} 26. Nxa7 {[%emt 0:00:00]} e4+ {[%emt 0:00:06]} 27. Ke2 {[%emt 0:00:00]} Nd6 {[%emt 0:00:04]} 28. Nb5 {[%emt 0:00:00]} Nf7 {[%emt 0:00:12]} 29. Bb7 {[%emt 0:00:00]} f5 {[%emt 0:00:09]} 30. Bxd5 {[%emt 0:00:00]} Kf8 {[%emt 0:00:01]} 31. Bxf7 {[%emt 0:00:00]} Kxf7 {[%emt 0:00:01]} 32. a4 {[%emt 0:00:00]} 1-0

[Event "Romanian Rapid Open 2022"]
[Site "Sebes"]
[Date "2022.12.02"]
[Round "1.39"]
[White "Sandea, Dorin-Gheorghe"]
[Black "Cordea, David"]
[Result "0-1"]
[ECO "B01"]
[WhiteElo "1227"]
[BlackElo "2049"]
[Annotator "TA"]
[PlyCount "54"]
[EventDate "2022.12.02"]
[EventType "rapid"]
[EventCountry "ROU"]
[SourceTitle "playchess.com"]
[Source "ChessBase"]
[SourceQuality "1"]
[TimeControl "600+5"]

{[%evp 14,54,33,35,56,0,35,13,35,12,29,25,35,-19,-20,-24,-14,-20,0,-6,-6,-9,-14,-16,-17,-225,-235,-224,-232,-213,-195,-221,-165,-302,-293,-2163,-2228,-29979,-29980,-6470,-6491,-5593,-5585]} 1. e4 {[%emt 0:00:03]} d5 {[%emt 0:00:01]} 2. exd5 {[%emt 0:00:03]} Qxd5 {[%emt 0:00:02]} 3. Nc3 {[%emt 0:00:05]} Qd8 {[%emt 0:00:01]} 4. d4 {[%emt 0:00:11]} Nf6 {[%emt 0:00:02]} 5. Nf3 {[%emt 0:00:02]} e6 {[%emt 0:00:03]} 6. Bg5 {[%emt 0:00:16]} Be7 {[%emt 0:00:09]} 7. Bd3 {[%emt 0:00:09]} O-O {[%emt 0:00:05]} 8. O-O {[%emt 0:00:32]} h6 {[%emt 0:00:14] B01: Scandinavian Defence.} 9. Bd2 {[%emt 0:01:04]} (9. Bf4 $14) 9... c5 {[%emt 0:00:03]} 10. dxc5 {[%emt 0:00:19]} Bxc5 {[%emt 0:00:02] [#] The position is equal.} 11. h3 $146 {[%emt 0:00:19]} ({Predecessor:} 11. Ne4 Nbd7 12. Qe2 a6 13. Rad1 Qe7 14. Nxc5 Nxc5 15. Bb4 Nd5 16. Bc4 Nxb4 17. Nd4 {1-0 (51) Lombardi,D (863)-Villar,J (928) LSS email 2013}) 11... Bd7 {[%emt 0:00:02]} 12. Re1 {[%emt 0:00:14]} (12. Qe2 {keeps more tension.} Bc6 13. Ne5 Qe7 14. Rad1) 12... Qb6 {[%emt 0:00:09][%csl LRb2,LRf2]} 13. Be3 {[%emt 0:00:49]} (13. Qe2 $14) 13... Bxe3 $11 {[%emt 0:00:08]} (13... Bc6 {with more complications.} 14. Bxc5 Qxc5 15. Ne5 Nbd7) 14. Rxe3 {[%emt 0:00:17]} Nc6 {[%emt 0:00:06]} 15. Rb1 {[%emt 0:00:42]} Nb4 {[%emt 0:00:12]} 16. a3 {[%emt 0:00:04]} Nxd3 {[%emt 0:00:03]} 17. Rxd3 {[%emt 0:00:16]} Rfd8 {[%emt 0:00:11]} 18. Qe1 {[%emt 0:01:07]} Bc6 {[%emt 0:00:37]} 19. b4 $2 {[%emt 0:01:03] [#] Loses the game.} (19. Ne5 $11 {and White stays safe.}) 19... Rxd3 $19 {[%emt 0:00:04]} 20. cxd3 {[%emt 0:00:02]} Bxf3 {[%emt 0:00:04]} 21. gxf3 {[%emt 0:00:02]} Rd8 {[%emt 0:00:03]} 22. Rd1 {[%emt 0:00:12]} Qd4 {[%emt 0:00:29] Prevents Qe5.} 23. Ne4 {[%emt 0:01:23]} (23. Qd2 $142) 23... Nd5 {[%emt 0:00:05]} 24. Qe3 $2 {[%emt 0:01:55] [#]} (24. Qe2) 24... Nxe3 {[%emt 0:00:04]} 25. fxe3 {[%emt 0:00:02]} Qxe3+ {[%emt 0:00:02]} 26. Kg2 {[%emt 0:00:13]} Rxd3 {[%emt 0:00:05]} 27. Rxd3 {[%emt 0:00:03]} Qxd3 {[%emt 0:00:04] Weighted Error Value: White=0.98/Black=0.09 (flawless)} 0-1

[Event "Romanian Rapid Open 2022"]
[Site "Sebes"]
[Date "2022.12.02"]
[Round "1.40"]
[White "Oltean, Cristian-Daniel"]
[Black "Topircean, Ioan"]
[Result "1-0"]
[ECO "C42"]
[WhiteElo "1896"]
[BlackElo "1290"]
[Annotator "NA RC COMBH"]
[PlyCount "61"]
[EventDate "2022.12.02"]
[EventType "rapid"]
[EventCountry "ROU"]
[SourceTitle "playchess.com"]
[Source "ChessBase"]
[SourceQuality "1"]
[TimeControl "600+5"]

1. e4 {[%emt 0:00:02]} e5 {[%emt 0:00:05]} 2. Nf3 {[%emt 0:00:03]} Nf6 {[%emt 0:00:07]} 3. Nxe5 {[%emt 0:00:03]} Qe7 {[%emt 0:00:09]} 4. d4 {[%emt 0:00:27]} Nxe4 {[%emt 0:00:19]} 5. Bd3 {[%emt 0:00:14]} d6 {[%emt 0:01:01]} 6. Bxe4 {[%emt 0:00:18]} dxe5 {[%emt 0:00:20]} 7. O-O {[%emt 0:00:16]} Nd7 {[%emt 0:00:57]} 8. Re1 {[%emt 0:00:14]} f6 {[%emt 0:00:25]} 9. dxe5 {[%emt 0:00:40]} Nxe5 {[%emt 0:00:21]} 10. f4 {[%emt 0:00:18]} Qc5+ {[%emt 0:00:19]} 11. Be3 {[%emt 0:00:16]} Qb4 {[%emt 0:00:35]} 12. fxe5 {[%emt 0:00:21]} Qxe4 {[%emt 0:00:20]} 13. exf6 {[%emt 0:00:10]} gxf6 {[%emt 0:00:37]} 14. Bf2 {[%emt 0:00:03]} Bf5 {[%emt 0:00:27]} 15. Nc3 {[%emt 0:00:15]} Qxe1+ {[%emt 0:00:14]} 16. Qxe1+ {[%emt 0:00:03]} Be7 {[%emt 0:00:13]} 17. Bc5 {[%emt 0:00:04]} Kf7 {[%emt 0:00:24]} 18. Qxe7+ {[%emt 0:00:03]} Kg6 {[%emt 0:00:04]} 19. Nd5 {[%emt 0:00:01]} Rhf8 {[%emt 0:00:10]} 20. Nf4+ {[%emt 0:00:05]} Kg5 {[%emt 0:00:11]} 21. Be3 {[%emt 0:00:07]} Rae8 {[%emt 0:00:03]} 22. Ne6+ {[%emt 0:00:36]} Kg4 {[%emt 0:00:22]} 23. Qb4+ {[%emt 0:00:10]} Kh5 {[%emt 0:00:30]} 24. Ng7+ {[%emt 0:00:14]} Kg6 {[%emt 0:00:14]} 25. Nxe8 {[%emt 0:00:04]} Rxe8 {[%emt 0:00:09]} 26. Re1 {[%emt 0:00:04]} b6 {[%emt 0:00:35]} 27. Qf4 {[%emt 0:00:02]} h5 {[%emt 0:00:15]} 28. Qh6+ {[%emt 0:00:05]} Kf7 {[%emt 0:00:05]} 29. Rf1 {[%emt 0:00:02]} Bg6 {[%emt 0:00:08]} 30. Bd4 {[%emt 0:00:05]} Re6 {[%emt 0:00:12]} 31. Qh8 {[%emt 0:00:03]} 1-0

[Event "Romanian Rapid Open 2022"]
[Site "Sebes"]
[Date "2022.12.02"]
[Round "2.1"]
[White "Jianu, Vlad-Cristian"]
[Black "Dragomirescu, Calin"]
[Result "1-0"]
[ECO "E65"]
[WhiteElo "2516"]
[BlackElo "1971"]
[Annotator "TA"]
[PlyCount "111"]
[EventDate "2022.12.02"]
[EventType "rapid"]
[EventCountry "ROU"]
[SourceTitle "playchess.com"]
[Source "ChessBase"]
[SourceQuality "1"]
[TimeControl "600+5"]

{[%evp 23,111,39,45,43,42,19,25,0,21,21,69,71,143,132,135,135,146,132,132,129,135,82,82,82,82,82,82,82,122,119,120,120,125,60,91,65,77,30,43,54,52,39,96,40,66,21,47,25,279,271,256,0,66,8,16,0,10,14,98,109,108,67,1654,1625,1550,1464,1613,1606,6451,6219,5285,5412,29964,8388,29976,29978,29977,29978,4610,9608,29983,29984,29985,29986,29986,29987,29990,29991,29995,29996]} 1. d4 {[%emt 0:00:02]} Nf6 {[%emt 0:00:02]} 2. Nf3 {[%emt 0:00:01]} g6 {[%emt 0:00:01]} 3. g3 {[%emt 0:00:01]} Bg7 {[%emt 0:00:01]} 4. Bg2 {[%emt 0:00:01]} O-O {[%emt 0:00:01]} 5. O-O {[%emt 0:00:02]} d6 {[%emt 0:00:01]} 6. b3 {[%emt 0:00:01]} c5 {[%emt 0:00:08]} 7. Bb2 {[%emt 0:00:05]} cxd4 {[%emt 0:00:02]} 8. Nxd4 {[%emt 0:00:02]} a6 {[%emt 0:00:12]} 9. c4 {[%emt 0:00:01]} Qc7 {[%emt 0:00:08]} 10. Nc3 {[%emt 0:00:07]} Nc6 {[%emt 0:00:09]} 11. Rc1 {[%emt 0:00:03]} Nxd4 {[%emt 0:00:28]} 12. Qxd4 {[%emt 0:00:01]} Be6 {[%emt 0:00:26]} 13. Rfd1 {[%emt 0:00:30] E65: King's Indian: Fianchetto: 6...c5 7 0-0 without d5 by White.} Rab8 {[%emt 0:00:39] [#]} 14. h3 $146 {[%emt 0:01:44]} ({Predecessor:} 14. Qd3 Rfe8 15. Nd5 Qa5 16. Nxf6+ exf6 17. a3 Red8 18. Bd5 Re8 19. Bxe6 Rxe6 20. e3 h5 21. Qd5 b5 22. b4 {1-0 (68) Dziuba,M (2583)-Kruckenhauser,A (2283) Chess.com INT 2021}) 14... Rfc8 {[%emt 0:00:27]} 15. Qe3 {[%emt 0:01:47] White has an edge.} Qc5 {[%emt 0:00:24]} 16. Qxc5 {[%emt 0:00:25]} Rxc5 {[%emt 0:00:12]} (16... dxc5 $11 {deserves consideration.} 17. Ba3 b6) 17. Na4 $14 {[%emt 0:00:01]} Ra5 {[%emt 0:00:27]} (17... Rh5 $142) 18. Bc3 $1 $16 {[%emt 0:00:26]} Rxa4 {[%emt 0:00:22]} 19. bxa4 {[%emt 0:00:01][%cal Oc4c5]} Nd7 {[%emt 0:00:03] Inhibits c5.} 20. Bxg7 {[%emt 0:00:34]} Kxg7 {[%emt 0:00:02]} 21. a5 {[%emt 0:00:04]} Nc5 {[%emt 0:00:12]} 22. Bd5 {[%emt 0:00:03]} (22. Rd2 $142) 22... Bxh3 {[%emt 0:00:22]} 23. Rd2 {[%emt 0:00:15]} Be6 {[%emt 0:00:15]} 24. Rb2 {[%emt 0:00:15]} Bxd5 {[%emt 0:00:32]} 25. cxd5 {[%emt 0:00:01][%mdl 4096] Endgame KRR-KRN} Kf6 {[%emt 0:00:12]} 26. Kg2 {[%emt 0:00:05]} h5 {[%emt 0:00:01]} 27. Rc4 {[%emt 0:00:12]} Ke5 {[%emt 0:00:09]} 28. Rd2 {[%emt 0:00:18] White is more active.} (28. e4 $1 $16) 28... b6 {[%emt 0:00:10]} 29. axb6 {[%emt 0:00:27]} Rxb6 {[%emt 0:00:02]} 30. f4+ {[%emt 0:00:08]} (30. g4 $1 $16) 30... Kf6 {[%emt 0:00:02]} 31. e4 {[%emt 0:00:02]} a5 {[%emt 0:00:23]} 32. Kf3 {[%emt 0:00:17]} a4 {[%emt 0:00:07]} (32... Rb1 $14) 33. Rdc2 {[%emt 0:00:08]} (33. Rc1 $16) 33... Rb1 {[%emt 0:00:15]} 34. Rd4 {[%emt 0:00:24]} Rf1+ {[%emt 0:00:10]} 35. Ke2 {[%emt 0:00:14]} (35. Rf2 $5 {[%cal Rf2f1]} Rc1 36. Re2 $14) 35... Rh1 {[%emt 0:00:09][%mdl 8192] [#]} (35... Rg1 $11 {and Black is okay.}) 36. Rxc5 $1 $18 {[%emt 0:00:16][%mdl 512]} dxc5 {[%emt 0:00:01] [#]} 37. Rxa4 {[%emt 0:00:01] KR-KR} ({White has to play} 37. e5+ $1 $18 Kf5 38. d6 (38. Rxa4 Rh3 $15) 38... exd6 {[#]} 39. exd6 $1 cxd4 40. d7 d3+ 41. Ke3) 37... h4 {[%emt 0:00:15]} (37... Rg1 $11) 38. gxh4 $1 $14 {[%emt 0:00:08]} Rxh4 {[%emt 0:00:02]} 39. Kf3 {[%emt 0:00:04]} Rh3+ {[%emt 0:00:06]} 40. Kg4 {[%emt 0:00:02]} Rc3 {[%emt 0:00:06]} (40... Rd3 $11 {remains equal.}) 41. Ra7 $16 {[%emt 0:00:04] aiming for e5+.} Rd3 {[%emt 0:00:41]} 42. Rc7 {[%emt 0:00:01] Prevents c4.} Ra3 $2 {[%emt 0:00:48][%mdl 8192]} (42... c4 $14) 43. e5+ $18 {[%emt 0:00:08]} (43. Rxc5 Rxa2 44. Rc7 Rd2 $14) 43... Kg7 {[%emt 0:00:01]} 44. Rxe7 {[%emt 0:00:02] Black must now prevent e6.} ({Not} 44. Rxc5 Rxa2 45. Rc7 Kf8 $11) 44... Kf8 {[%emt 0:00:14] Against e6} 45. Rc7 {[%emt 0:00:02]} Rxa2 {[%emt 0:00:06]} 46. d6 {[%emt 0:00:59]} Rd2 {[%emt 0:00:05]} 47. Rxc5 {[%emt 0:00:08]} Kg7 {[%emt 0:00:12]} 48. Kf3 {[%emt 0:00:10] White threatens Ke3 and mate.} Rd1 {[%emt 0:00:18]} 49. Ke2 {[%emt 0:00:03]} Rd4 {[%emt 0:00:05]} 50. Ke3 {[%emt 0:00:00]} Rd1 {[%emt 0:00:01]} 51. Rc4 {[%emt 0:00:16] Rd4 would kill now.} Kf8 {[%emt 0:00:09]} 52. Rd4 {[%emt 0:00:12] White mates.} Rxd4 {[%emt 0:00:27]} 53. Kxd4 {[%emt 0:00:01]} Ke8 {[%emt 0:00:01]} 54. Kc5 {[%emt 0:00:07]} Kd8 {[%emt 0:00:07]} 55. Kc6 {[%emt 0:00:02]} Kc8 {[%emt 0:00:01]} 56. d7+ {[%emt 0:03:11] Weighted Error Value: White=0.20 (precise) /Black=0.68} 1-0